Cogmind - Beta 14 @@@ ROGUE MODE // 2025.02.28 @ 20:59:38 Player: Lu10ent dan Result: Destroyed by Y-45 Defender with Beam Rifle Performance ------------- Evolutions (2) 1000 Regions Visited (3) 600 Robots Destroyed (41) 205 Value Destroyed (450) 450 Prototype IDs (8) 160 Alien Tech Used (0) 0 Bonus (0) 0 TOTAL SCORE: 2415 Bonus ------- None Cogmind --------- Core Integrity 0/550 Matter 151/300 Energy 100/100 System Corruption 5% Temperature Cool (9) Movement Core (100) Ox1 Location -8/Materials Parts ------- > --- POWER (1) -------- (None) > --- PROPULSION (4) --- (None) > --- UTILITY (4) ------ Small Storage Unit Hacking Suite > --- WEAPON (2) ------- (None) > --- INVENTORY (8) ---- (None) Peak State ------------ > --- POWER ------------ Nuclear Core > --- PROPULSION ------- Wheel Improved Hover Unit Improved Hover Unit Improved Hover Unit > --- UTILITY ---------- Improved Heat Sink Small Storage Unit Compact Matter Pod Improved Targeting Computer > --- WEAPON ----------- Advanced Beam Cannon Improved Assault Rifle > --- INVENTORY -------- Nuclear Core Nuclear Core Improved Heat Sink Shock Rifle Improved Grenade Launcher [Rating: 26] Favorites ----------- Power Heavy Ion Engine Engine Heavy Ion Engine Power Core Nuclear Core Propulsion Improved Hover Unit Leg Aluminum Leg Wheel Wheel Hover Unit Improved Hover Unit Utility Salvage Targeting Computer Device Sensor Array Storage Small Storage Unit Processor Salvage Targeting Computer Hackware Hacking Suite Protection Medium Armor Plating Weapon Medium Laser Energy Gun Medium Laser Energy Cannon Advanced Beam Cannon Ballistic Gun Improved Assault Rifle Ballistic Cannon Light Cannon Launcher Improved Grenade Launcher Build | -11 -10 -9 -8 ------- Run | Yrd Mat Mat Mat Slots Evolved 4 | . . 2 2 Power . | . . . . Propulsion 2 | . . 1 1 Utility 2 | . . 1 1 Weapon . | . . . . Parts Attached 53 | . 20 11 22 Power 5 | . 1 1 3 Engine 1 | . 1 . . Core 4 | . . 1 3 Reactor . | . . . . Propulsion 13 | . 7 3 3 Treads . | . . . . Leg . | . . . . Wheel 7 | . 4 . 3 Hover 6 | . 3 3 . Flight . | . . . . Utility 21 | . 9 5 7 Device 8 | . 3 3 2 Storage 6 | . 4 . 2 Processor 4 | . 2 1 1 Hackware 1 | . . . 1 Protection 2 | . . 1 1 Artifact . | . . . . Weapon 14 | . 3 2 9 Energy Gun 9 | . 2 2 5 Energy Cannon 1 | . . . 1 Ballistic Gun 2 | . . . 2 Ballistic Cannon 1 | . 1 . . Launcher 1 | . . . 1 Special Weapon . | . . . . Impact Weapon . | . . . . Slashing Weapon . | . . . . Piercing Weapon . | . . . . Special Melee Weapon . | . . . . Unidentified Prototypes 6 | . 1 1 4 Parts Lost 22 | . 2 3 17 Power 4 | . 1 . 3 Propulsion 8 | . 1 1 6 Utility 5 | . . 2 3 Weapon 5 | . . . 5 Highest Loss Streak 17 | . 1 2 17 To Critical Strikes . | . . . . Average Slot Usage (%) 93 | . 95 96 81 Engine 10 | . 14 10 . Core 1 | . . . 7 Wheel 8 | . 13 . 4 Hover 18 | . 13 32 19 Device 7 | . 3 10 15 Storage 9 | . 13 . 6 Processor 9 | . 7 18 6 Energy Gun 17 | . 23 11 6 Ballistic Gun 1 | . . . 6 Ballistic Cannon 5 | . 4 11 1 Peak Build Rating 26 | 6 13 20 26 Average Rating 13 | 6 9 16 22 On Entrance 11 | 6 6 12 20 Naked Turns . | . . . . Heaviest Build 30 | 12 30 22 23 Greatest Support 30 | 20 20 21 30 Greatest Overweight (x) 7 | . 2 1 7 Average Overweight (x) . | . . . . Largest Inventory Capacity 15 | 8 15 5 8 Average Capacity 6 | 8 7 5 6 Most Carried 11 | 6 11 5 6 Average Carried 5 | 6 6 4 4 Final Capacity 8 | 8 5 5 8 Final Carried 6 | 6 5 5 . Class Distribution -------------------- 100% | Mutant Dominant Class ---------------- Mutant | -10/Materials Mutant | -9/Materials Mutant | -8/Materials Resources | -11 -10 -9 -8 ----------- Run | Yrd Mat Mat Mat Matter Collected 813 | 187 399 115 112 Remotely . | . . . . Salvage Created 1056 | . 613 228 215 Parts 78 | . 54 13 11 Haulers Intercepted 2 | . 1 . 1 Recyclers Shooed 1 | . . 1 . Parts Field Recycled . | . . . . Retrieved Matter . | . . . . Parts Self-Destructed . | . . . . Prevented . | . . . . Kills | -11 -10 -9 -8 ------- Run | Yrd Mat Mat Mat Combat Hostiles Destroyed 14 | . 7 4 3 Guns 11 | . 6 4 1 Cannons 1 | . 1 . . AOE 2 | . . . 2 Classes Destroyed 9 | . 7 1 1 Worker 15 | . 14 . 1 Builder 1 | . . 1 . Tunneler 1 | . 1 . . Hauler 2 | . 1 . 1 Recycler 3 | . 1 2 . Operator 1 | . . . 1 Watcher 4 | . 3 . 1 Swarmer 9 | . 5 4 . Grunt 5 | . 2 . 3 Best Kill Streak 6 | . 6 4 3 Combat Bots Only 4 | . 3 4 2 Max Kills in Single Turn 2 | . 2 1 2 Gunslinging . | . . . . Exploded 1 | . . . 1 Melee . | . . . . Uniques/NPCs Destroyed . | . . . . Combat | -11 -10 -9 -8 -------- Run | Yrd Mat Mat Mat Hostile Shots Fired 293 | . 52 51 190 Missed 99 | . 14 21 64 Damage Taken 2532 | . 358 375 1799 Core 677 | . 62 56 559 Absorbed by Shields . | . . . . Core Remaining (%) 87 | 100 75 86 . Volleys Fired 93 | . 63 15 15 Largest 2 | . 2 2 2 Hottest 100 | . 100 91 91 Shots Fired 184 | . 126 30 28 Gun 131 | . 99 15 17 Cannon 50 | . 27 15 8 Launcher 3 | . . . 3 Special . | . . . . Kinetic 54 | . 27 15 12 Thermal 122 | . 99 15 8 Explosive 3 | . . . 3 Electromagnetic 5 | . . . 5 Robot Hit Streak 11 | . 11 5 8 Robot Miss Streak 4 | . 4 4 1 Penetration Max . | . . . . Secondary Targets . | . . . . Shots Hit Robots 113 | . 75 15 23 Core Hits 51 | . 31 8 12 Critical Kills . | . . . . Critical Parts Destroyed . | . . . . Critical Strikes 11 | . 8 2 1 Burn 9 | . 7 1 1 Blast 2 | . 1 1 . Melee Attacks . | . . . . Impact . | . . . . Slashing . | . . . . Piercing . | . . . . Sneak Attacks . | . . . . Combat Hostiles . | . . . . Follow-up Attacks . | . . . . Damage Inflicted 1795 | . 1010 231 554 Guns 1146 | . 748 129 269 Cannons 453 | . 262 102 89 Explosions 191 | . . . 191 Melee . | . . . . Ramming 5 | . . . 5 Kinetic 509 | . 262 102 145 Thermal 1003 | . 748 129 126 Explosive 191 | . . . 191 Electromagnetic 87 | . . . 87 Impact . | . . . . Slashing . | . . . . Piercing . | . . . . Highest Corruption 5 | . 1 . 5 Average Corruption 1 | . 1 . 5 Corruption Purged . | . . . . Corruption Blocked . | . . . . Effects 3 | . 3 . . Message Errors 1 | . 1 . . Matter Fused 1 | . 1 . . Alerts 1 | . 1 . . Overload Shots . | . . . . Overflow Damage 5 | . . . 5 Projectiles . | . . . . Explosions 5 | . . . 5 Melee . | . . . . Knockbacks 3 | . 2 1 . Impact . | . . . . Kinetic 3 | . 2 1 . Secondary . | . . . . Self-Inflicted Damage 2 | . . . 2 Shots . | . . . . Rammed 2 | . . . 2 Targets Rammed 2 | . . . 2 Kicked . | . . . . Crushed . | . . . . Highest Temperature 290 | . 290 166 60 Average Temperature 74 | . 81 56 35 Received Heat Transfer 879 | . 60 171 648 Effects 3 | . 3 . . Energy Bleed 1 | . 1 . . Interference 2 | . 2 . . Siege Activations . | . . . . Robots Corrupted . | . . . . Combat Hostiles . | . . . . Parts Fried . | . . . . Impact Corruptions . | . . . . Robots Melted . | . . . . Combat Hostiles . | . . . . Parts Melted 9 | . 5 2 2 Heat Transferred 3478 | . 2738 407 333 Parts Sabotaged . | . . . . Parts Stolen . | . . . . Parts Stripped . | . . . . Power Chain Reactions . | . . . . Alert | -11 -10 -9 -8 ------- Run | Yrd Mat Mat Mat Peak Influence 240 | . 153 240 240 Initial 101 | . . . 101 Average 78 | . 55 78 147 Maximum Alert Level 1 | . . 1 1 Low Security (%) 93 | 100 100 93 75 Level 1 6 | . . 6 24 Level 2 . | . . . . Level 3 . | . . . . Level 4 . | . . . . Level 5 . | . . . . High Security . | . . . . Max Security . | . . . . Squads Dispatched 3 | . . 1 2 Investigation . | . . . . Extermination . | . . . . Reinforcement 3 | . . 1 2 Assault . | . . . . Garrison . | . . . . Intercept . | . . . . Searches Triggered . | . . . . Construction Impeded . | . . . . Haulers Reinforced . | . . . . Active Scanning Responses . | . . . . Cargo Convoy Interrupts . | . . . . Stealth | -11 -10 -9 -8 --------- Run | Yrd Mat Mat Mat Distress Signals 6 | . 1 4 1 Communications Jammed . | . . . . Distress Signals . | . . . . Times Spotted 51 | . 11 17 23 Peak Tracking Total 10 | . 4 7 10 Tactical Retreats 6 | . . 3 3 Traps | -11 -10 -9 -8 ------- Run | Yrd Mat Mat Mat Traps Triggered 1 | . 1 . . Indirectly . | . . . . Trap Hack Attempts . | . . . . Triggered . | . . . . Disarmed 2 | . 2 . . Reprogrammed . | . . . . Reused . | . . . . Traps Extracted . | . . . . Installed . | . . . . Triggered . | . . . . Machines | -11 -10 -9 -8 ---------- Run | Yrd Mat Mat Mat Machines Disabled . | . . . . Max in Single Turn . | . . . . Machines Repaired . | . . . . Machines Dismantled . | . . . . Machines Sabotaged . | . . . . Overloaded Fab Kills . | . . . . Hacking | -11 -10 -9 -8 --------- Run | Yrd Mat Mat Mat Machines Accessed 6 | . 6 . . Terminals 5 | . 5 . . Fabricators . | . . . . Repair Stations . | . . . . Recycling Units 1 | . 1 . . Scanalyzers . | . . . . Garrison Access . | . . . . Total Hacks 12 | . 12 . . Successful 7 | . 7 . . Failed 5 | . 5 . . Catastrophic 1 | . 1 . . Database Lockouts . | . . . . Manual . | . . . . Terminals 11 | . 11 . . Fabricators . | . . . . Repair Stations . | . . . . Recycling Units 1 | . 1 . . Scanalyzers . | . . . . Garrison Access . | . . . . Terminal Hacks 6 | . 6 . . Robot Analysis 1 | . 1 . . Prototype ID Bank 1 | . 1 . . Unreport Threat 1 | . 1 . . Disarm Traps 1 | . 1 . . Registered Components 1 | . 1 . . Zone Layout 1 | . 1 . . Fabricator Hacks . | . . . . Repair Station Hacks . | . . . . Recycling Unit Hacks 1 | . 1 . . Retrieve Components 1 | . 1 . . Scanalyzer . | . . . . Garrison Access Hacks . | . . . . Unauthorized Hacks . | . . . . Terminals . | . . . . Fabricators . | . . . . Repair Stations . | . . . . Recycling Units . | . . . . Scanalyzers . | . . . . Garrison Access . | . . . . Data Cores Recovered 1 | . . . 1 Used . | . . . . Hacking Detections 5 | . 5 . . Full Trace Events . | . . . . Feedback Events . | . . . . Feedback Blocked . | . . . . Robot Schematics Acquired . | . . . . Robots Built . | . . . . Authchips . | . . . . Time . | . . . . Total Robot Build Rating . | . . . . Part Schematics Acquired . | . . . . Parts Built . | . . . . Authchips . | . . . . Time . | . . . . Total Part Build Rating . | . . . . Parts Repaired . | . . . . Time . | . . . . Parts Recycled . | . . . . Recycled Matter . | . . . . Retrieved Matter . | . . . . Retrieved Components 9 | . 9 . . Parts Scanalyzed . | . . . . Part Schematics Acquired . | . . . . Parts Damaged . | . . . . Bothacking | -11 -10 -9 -8 ------------ Run | Yrd Mat Mat Mat Used RIF Installer . | . . . . Robots Hacked . | . . . . Non-combat . | . . . . Combat . | . . . . Robot Hacks Applied . | . . . . Relay Couplers Released . | . . . . Fabnet Peak Effective % . | . . . . Robots Rewired . | . . . . Allies Hacked . | . . . . Hacks Repelled . | . . . . Allies | -11 -10 -9 -8 -------- Run | Yrd Mat Mat Mat Total Allies . | . . . . Largest Group . | . . . . Highest-Rated Group . | . . . . Highest-Rated Ally . | . . . . Total Orders . | . . . . Ally Attacks . | . . . . Total Damage . | . . . . Kills . | . . . . Allies Corrupted . | . . . . Allies Melted . | . . . . Intel | -11 -10 -9 -8 ------- Run | Yrd Mat Mat Mat Robot Analysis Total 1 | . 1 . . Derelict Logs Recovered . | . . . . Drone Launches . | . . . . Drone Recoveries . | . . . . Exploration | -11 -10 -9 -8 ------------- Run | Yrd Mat Mat Mat Turns Passed 1703 | 10 975 381 337 Spaces Moved 1888 | 9 976 506 397 Core 24 | . . . 24 Treads . | . . . . Legs 35 | 9 26 . . Wheels 454 | . 422 . 32 Hover 1375 | . 528 506 341 Flight . | . . . . Fastest Speed 52 | 120 56 52 52 Average Speed 64 | 120 69 55 63 Slowest Speed 400 | 120 185 112 400 Overloaded Moves . | . . . . Propulsion Burnouts . | . . . . Robots Hopped . | . . . . Cave-ins Triggered . | . . . . Exploration Rate (%) 41 | 3 89 34 41 Regions Visited 3 Branch Regions . Pre-discovered Areas . | . . . . Known Exits Taken . | . . . . Unknown Exits Taken 3 | 1 1 1 . Scrap Searched . | . . . . Spaces Dug . | . . . . Terrain Destroyed 1 | . . . 1 Melee . | . . . . Projectile . | . . . . AOE 1 | . . . 1 Terrain Rammed . | . . . . Walls Destroyed . | . . . . Machines Disabled . | . . . . Actions | -11 -10 -9 -8 --------- Run | Yrd Mat Mat Mat Total 2184 | 8 1144 583 449 Wait 91 | . 56 31 4 Move 1885 | 8 975 505 397 Hop . | . . . . Pick Up 28 | . 13 10 5 Fast Attach 12 | . 5 3 4 Attach 9 | . 1 2 6 Detach . | . . . . Swap 33 | . 15 6 12 Drop 31 | . 16 11 4 Fire 93 | . 63 15 15 Melee . | . . . . Ram 2 | . . . 2 Kick . | . . . . Crush . | . . . . Escape Stasis . | . . . . Rewire . | . . . . Trap . | . . . . Miscellaneous . | . . . . Route ------- -11/Scrapyard -10/Materials (discovered 6 exits: [*Mat x3] / [*Min x2] / [*Sub]) -9/Materials -8/Materials History --------- Turn | Location | Event 1 | -11/Scrapyard | Discovered new exit (range 3) 11 | -11/Scrapyard | Entered Materials 158 | -10/Materials | Discovered new exit (range 12) 302 | -10/Materials | Build established: Mutant 459 | -10/Materials | Discovered new exit (range 16) 571 | -10/Materials | Discovered new exit (range 7) 715 | -10/Materials | Discovered new exit (range 10) 802 | -10/Materials | Discovered new exit (range 16) 949 | -10/Materials | Discovered new exit (range 15) 986 | -10/Materials | Entered another Materials area 986 | -9/Materials | Evolved 2 slots: Propulsion x1, Utility x1 1345 | -9/Materials | Discovered new exit (range 6) 1367 | -9/Materials | Entered another Materials area 1367 | -8/Materials | Evolved 2 slots: Propulsion x1, Utility x1 1672 | -8/Materials | Core integrity fell below 50% 1692 | -8/Materials | Core integrity fell below 20% 1704 | -8/Materials | Destroyed by Y-45 Defender with Beam Rifle Last Messages --------------- 01643_ Lgt. Nuclear Core destroyed. 01652_ Hpw. Shotgun destroyed. 01652_ Imp. Assault Rifle destroyed. 01661_ G-47 Trooper destroyed. 01662_ Imp. Heat Sink destroyed. 01664_ Destroyed Heat Sink. 01667_ G-47 Trooper destroyed. 01668_ Nuclear Core destroyed. 01673_ Shock Rifle destroyed. 01677_ Imp. Grenade Launcher destroyed. 01679_ Nuclear Core destroyed. 01679_ Critical hit (Burn: +37). 01680_ Hvy. EM Shotgun destroyed. 01687_ Y-45 Defender heat short circuits Hvy. Assault Rifle. 01687_ Y-45 Defender misfires. 01689_ Imp. Sensor Array destroyed. 01703_ Slammed into S-10 Pest. 01703_ Imp. Heat Sink destroyed. 01703_ System corrupted by crushing effect (+5). 01704_ Slammed into S-10 Pest. Map ----- +----------------------------------------------------+ | ?????????????+ # "T #?# #?????????????????? | | ?????????????# " "" #?# #?????????????????? | | ?????????????# # /![#?# #?????????????????? | | ?????????????# # /! ### #?????????????????? | | ?????????????## ## = /! ## #?????????????????? | | ??????????????# ## ### #???###???????????? | | ?????????????## #####/######## #?? #???????????? | | ?????????????# ## * ##? #???????????? | | ?????????????# # #???????????? | | ?????????????# ## # #???????????? | | ?????????????##+### + #???????????? | | ????????????? # # #???????????? | | ???????????# # # #???????????? | | ???????????# %[ #? / #???????????? | | ???????????# # Y #? #???????????? | | ???????????# # Y #??###???????????? | | ???????????# # #????????????????? | | ???????????######## #????????????????? | | ??????????????????# #????????????????? | | ??????????????????# g #????????????????? | | ??????????????????# #????????????????? | | ??????????????????# "#????????????????? | | ??????????????????# g T#????????????????? | | ??????????????????# g "#????????????????? | | ??????????????????+ s #????????????????? | | ??????????????????# @ #????????????????? | | ??????????????????# ###/####s#####?????????????? | | ??????????????????# ?# #?????????????? | | ??????????????????# ??# #?????????????? | | ??????????????????????# #?????????????? | | ??????????????????????# #?????????????? | | ??????????????????????# #?????????????? | | ??????????????????????##############?????????????? | | ?????????????????????????????????????????????????? | | ?????????????????????????????????????????????????? | | ?????????????????????????????????????????????????? | | ?????????????????????????????????????????????????? | | ?????????????????????????????????????????????????? | | ?????????????????????????????????????????????????? | | ?????????????????????????????????????????????????? | | ?????????????????????????????????????????????????? | | ?????????????????????????????????????????????????? | | ?????????????????????????????????????????????????? | | ?????????????????????????????????????????????????? | | | | | | | | | | | | | +----------------------------------------------------+ Best States ------------- Heat Dissipation 45 Coolant Potential 50 Energy Generation 14 Energy Capacity 280 Matter Stores 450 Matter Capacity 450 Sight Range 16 Robot Scan Range 15 Terrain Scan Density 85 Armor Coverage 225 Weapon Shielding 33 Evasion (%) 55 Targeting Accuracy 6 Salvage Targeting 2 Offensive Hacking 10 Item Schematics ----------------- None Robot Schematics ------------------ None Fabricated ------------ Nothing Alien Tech Used ----------------- None Achievements -------------- None Challenges ------------ None Game ------ Seed SuperdenseBlastSaw Manual? 0 Play Time 00:42:29 Cumulative 20.1 hours Start 2025.02.28 @ 18:51:43 End 2025.02.28 @ 20:59:38 Sessions 1 Manual Loads 0 Difficulty Rogue Special Mode None Game No. 20 Rogue 20 Adventurer 0 Explorer 0 Win Type - Total 0 Types 0/0/0/0/0/0/0/0/0 Lore% 2 Gallery% 18 Achievement% 18 Wizard Run 0 Options --------- Layout 0 ASCII 0 Keyboard 0 Movement Mouse Keybinds 1 Fullscreen 2 Font 18/SmallcapsGlow Map View 56x25 Zoom Use 99% Tactical HUD 1 Map Filters NONE Filters NONE Steam 1 RUN: e3001101-ebb3-4f40-b9c9-5b61328a1aa5